bitfinex/quotes_SOLUSD_20250106
["timestamp","ask_amount","ask_price","bid_price","bid_amount"]
[1736166401491,9.12778386,217.38,217.35,6.5895]
[1736166404919,9.12778386,217.39,217.35,6.5895]
[1736166405211,9.12778386,217.4,217.35,6.5895]
[1736166406321,9.12778386,217.38,217.32,1.5085]
[1736166409598,38.37218791,217.47,217.32,1.5085]
[1736166409599,9.12778386,217.39,217.32,10.63628386]
[1736166410129,9.12778386,217.38,217.32,1.5085]
[1736166410302,9.12778386,217.39,217.32,10.63628386]
[1736166410498,9.12778386,217.38,217.32,1.5085]
[1736166411133,9.12778386,217.36,217.32,1.5085]
[1736166411435,9.12778386,217.37,217.32,1.5085]
[1736166415203,9.12778386,217.36,217.32,1.5085]
[1736166416827,9.12778386,217.36,217.3,15.73358386]
[1736166421319,9.12778386,217.36,217.3,6.6058]
[1736166422641,9.12778386,217.35,217.3,6.6058]
[1736166423339,9.12778386,217.34,217.28,9.12778386]
[1736166423642,36.0369,217.42,217.27,1.5957]
[1736166423643,9.12778386,217.35,217.29,9.12778386]
[1736166424617,9.12778386,217.36,217.29,9.12778386]
[1736166425051,13.0405,217.42,217.31,9.12778386]
[1736166425219,9.12778386,217.39,217.32,9.12778386]
[1736166425422,9.12778386,217.4,217.33,9.12778386]
[1736166425746,49.14413719,217.47,217.39,9.12778386]
[1736166425747,7.20844928,217.47,217.39,9.12778386]
[1736166425957,9.12778386,217.46,217.39,9.12778386]
[1736166426631,9.12778386,217.45,217.39,9.12778386]
[1736166427420,9.12778386,217.45,217.38,11.18778386]
[1736166427636,10.034022,217.5,217.42,9.12778386]
[1736166427830,10.034022,217.5,217.44,9.12778386]
[1736166428026,10.034022,217.5,217.44,32.90466786]
[1736166428245,10.034022,217.5,217.47,9.12778386]
[1736166428442,10.034022,217.5,217.48,9.12778386]
[1736166428827,10.034022,217.5,217.48,9.81730543]
[1736166429230,10.034022,217.5,217.46,23.776884]
[1736166429422,10.034022,217.5,217.47,9.12778386]
[1736166429844,10.034022,217.5,217.48,16.74408386]
[1736166430040,10.034022,217.5,217.49,9.12778386]
[1736166430249,10.034022,217.5,217.48,16.74408386]
[1736166431047,10.034022,217.5,217.48,7.6163]
[1736166431350,10.034022,217.5,217.48,6.0339]
[1736166431549,10.034022,217.5,217.44,32.90466786]
[1736166432057,19.16180586,217.5,217.45,2.06]
[1736166432344,19.16180586,217.5,217.43,8.43916884]
[1736166432345,19.16180586,217.5,217.43,16.87728386]
[1736166432548,9.12778386,217.49,217.43,18.93728386]
[1736166432726,20.62248386,217.49,217.43,9.8095]
[1736166433027,9.12778386,217.47,217.41,11.18778386]
[1736166434246,9.12778386,217.48,217.41,11.18778386]
[1736166435430,9.12778386,217.48,217.44,20.0]
[1736166435862,9.12778386,217.46,217.44,20.0]
[1736166436322,9.12778386,217.46,217.41,2.06]
[1736166436521,9.12778386,217.46,217.43,20.0]
[1736166436750,11.4958,217.47,217.43,20.0]
[1736166436946,9.12778386,217.46,217.43,20.0]
[1736166439537,9.12778386,217.45,217.38,16.66198386]
[1736166439743,9.12778386,217.43,217.41,20.0]
[1736166440860,9.12778386,217.42,217.38,6.0073]
[1736166441064,9.12778386,217.42,217.36,2.06]
[1736166441442,9.12778386,217.42,217.36,31.18778386]
[1736166442155,11.4978,217.44,217.36,31.18778386]
[1736166442156,9.12778386,217.41,217.36,22.06]
[1736166442359,9.12778386,217.41,217.38,20.0]
[1736166442539,9.12778386,217.41,217.36,2.06]
[1736166442970,9.12778386,217.42,217.36,31.18778386]
[1736166443343,9.12778386,217.42,217.36,29.12778386]
[1736166444479,9.12778386,217.41,217.36,20.0]
[1736166446086,20.62728386,217.4,217.28,8.1936]
[1736166446378,20.62728386,217.4,217.31,9.12778386]
[1736166446379,9.12778386,217.37,217.31,9.12778386]
[1736166446578,9.12778386,217.37,217.3,2.06]
[1736166446748,9.12778386,217.37,217.31,9.12778386]
[1736166447264,9.12778386,217.37,217.3,2.06]
[1736166447466,11.4968,217.45,217.36,9.12778386]
[1736166447781,9.12778386,217.44,217.37,17.71968386]
[1736166448284,9.12778386,217.42,217.37,2.06]
[1736166449563,9.12778386,217.41,217.37,2.06]
[1736166449968,36.51113544,217.47,217.37,11.18778386]
[1736166449969,11.496,217.47,217.37,11.18778386]
[1736166450283,9.12778386,217.43,217.37,2.06]
[1736166450885,9.12778386,217.44,217.37,2.06]
[1736166451382,9.12778386,217.46,217.39,9.12778386]
[1736166451586,20.62378386,217.47,217.4,9.12778386]
[1736166452258,9.12778386,217.46,217.39,9.12778386]
[1736166452661,9.12778386,217.45,217.37,2.06]
[1736166452954,9.12778386,217.45,217.37,11.18778386]
[1736166453263,9.12778386,217.44,217.37,2.06]
[1736166454985,11.496,217.47,217.37,11.87766905]
[1736166455190,9.12778386,217.44,217.37,11.87766905]
[1736166455685,11.496,217.47,217.37,11.87766905]
[1736166455860,9.12778386,217.44,217.37,11.87766905]
[1736166456061,9.12778386,217.44,217.37,2.06]
[1736166457464,9.12778386,217.44,217.37,11.18778386]
[1736166458292,9.12778386,217.43,217.37,2.06]
[1736166459773,9.12778386,217.42,217.37,2.06]
[1736166460188,9.12778386,217.43,217.37,2.06]
[1736166460693,9.12778386,217.44,217.37,2.06]
[1736166461375,9.12778386,217.43,217.37,2.06]
[1736166462479,9.12778386,217.43,217.37,2.74994868]
[1736166462685,9.12778386,217.44,217.37,2.74994868]
[1736166463199,9.12778386,217.43,217.37,2.06]
[1736166463506,9.12778386,217.41,217.36,2.04]
[1736166464291,9.12778386,217.42,217.36,2.04]
[1736166465372,9.12778386,217.37,217.27,0.689953]
[1736166465578,9.12778386,217.35,217.3,9.9932]
[1736166465778,9.12778386,217.34,217.3,7.9532]
[1736166466078,9.12778386,217.31,217.25,7.8005]
[1736166466504,9.12778386,217.3,217.25,7.8005]
[1736166467194,9.12778386,217.31,217.25,7.8005]
[1736166467706,9.12778386,217.32,217.25,16.92828386]
[1736166468589,9.12778386,217.31,217.25,16.92828386]
[1736166471113,9.12778386,217.32,217.26,9.12778386]
[1736166471301,9.12778386,217.32,217.25,7.8005]
[1736166471613,9.12778386,217.33,217.26,9.12778386]
[1736166474032,11.5019,217.36,217.25,7.8005]
[1736166474033,9.12778386,217.32,217.25,7.8005]
[1736166474216,9.12778386,217.3,217.23,1.10365212]
[1736166474392,9.12778386,217.3,217.23,10.23143598]
[1736166474898,9.12778386,217.3,217.24,9.12778386]
[1736166476722,9.12778386,217.3,217.23,10.23143598]
[1736166477799,9.12778386,217.29,217.23,1.10365212]
[1736166478006,9.12778386,217.27,217.23,1.10365212]
[1736166478217,9.12778386,217.26,217.23,1.10365212]
[1736166480126,9.12778386,217.25,217.23,1.10365212]
[1736166480632,9.12778386,217.24,217.23,1.10365212]
[1736166482311,25.0,217.2,217.03,23.94263485]
[1736166482513,9.12778386,217.15,217.09,9.12778386]
[1736166482714,9.12778386,217.16,217.09,9.12778386]
[1736166482906,9.12778386,217.15,217.08,9.12778386]
[1736166483106,9.12778386,217.14,217.08,9.12778386]
[1736166483911,9.12778386,217.12,217.04,0.69087172]
[1736166484101,9.12778386,217.12,217.05,9.12778386]
[1736166484296,9.12778386,217.11,217.05,9.12778386]
[1736166484507,9.12778386,217.1,217.04,9.12778386]
[1736166484840,9.12778386,217.08,217.02,9.12778386]
[1736166487108,9.12778386,217.08,217.01,6.358]
[1736166487318,9.12778386,217.07,217.01,15.48578386]
[1736166487625,2.04,217.16,217.06,9.12778386]
[1736166487805,9.12778386,217.12,217.06,9.12778386]
[1736166488005,9.12778386,217.11,217.05,9.12778386]
[1736166488220,9.12778386,217.1,217.04,9.12778386]
[1736166488421,9.12778386,217.09,217.03,32.90466786]
[1736166488619,20.0,217.18,217.05,9.12778386]
[1736166488928,9.12778386,217.13,217.07,9.12778386]
[1736166489142,9.12778386,217.12,217.06,9.12778386]
[1736166489306,9.12778386,217.11,217.05,9.12778386]
[1736166489833,9.12778386,217.11,217.03,23.776884]
[1736166489834,6.6065,217.29,217.13,23.776884]
[1736166490041,9.12778386,217.24,217.18,9.12778386]
[1736166491121,14.00189668,217.24,217.17,14.00189668]
[1736166493709,14.00189668,217.24,217.18,1.02014141]
[1736166494739,14.00189668,217.24,217.18,15.02203809]
[1736166495112,14.00189668,217.24,217.19,1.02009444]
[1736166495313,14.00189668,217.25,217.19,15.02199112]
[1736166495619,14.00189668,217.28,217.21,14.00189668]
[1736166496250,14.00189668,217.28,217.22,1.01995356]
[1736166496449,14.00189668,217.29,217.23,14.00189668]
[1736166496620,14.00189668,217.3,217.23,14.00189668]
[1736166496820,14.00189668,217.3,217.24,1.01985966]
[1736166497020,2.08,217.32,217.24,1.01985966]
[1736166497021,14.00189668,217.27,217.24,1.01985966]
[1736166497538,14.00189668,217.25,217.24,1.01985966]
[1736166498514,11.5043,217.31,217.24,1.01985966]
[1736166498515,14.00189668,217.26,217.24,1.01985966]
[1736166498715,14.00189668,217.25,217.24,1.01985966]
[1736166513139,8.96060215,217.25,217.24,1.01985966]
[1736166513332,8.96060215,217.27,217.24,1.01985966]
[1736166513745,11.5035,217.33,217.24,1.01985966]
[1736166513950,8.96060215,217.31,217.24,9.98046181]
[1736166514162,8.96060215,217.3,217.24,1.01985966]
[1736166514530,8.96060215,217.29,217.24,1.01985966]
[1736166515236,8.96060215,217.27,217.24,1.01985966]
[1736166515934,8.96060215,217.26,217.24,1.01985966]
[1736166516335,8.96060215,217.27,217.24,1.01985966]
[1736166517138,8.96060215,217.28,217.24,1.01985966]
[1736166517669,8.96060215,217.28,217.24,0.86493966]
[1736166518563,8.96060215,217.27,217.24,0.86493966]
[1736166521168,8.96060215,217.25,217.24,0.86493966]
[1736166529400,11.5073,217.26,217.24,0.86493966]
[1736166529401,34.5144,217.3,217.24,0.86493966]
[1736166529559,8.96060215,217.25,217.24,0.86493966]
[1736166530046,8.96060215,217.25,217.16,6.6167]
[1736166530247,8.96060215,217.21,217.16,6.6167]
[1736166531679,11.5078,217.25,217.16,6.6167]
[1736166531899,8.96060215,217.23,217.16,15.57730215]
[1736166532190,8.96060215,217.22,217.16,6.6167]
[1736166533081,8.96060215,217.21,217.16,6.6167]
[1736166533387,8.96060215,217.2,217.16,6.6167]
[1736166533558,35.8424086,217.25,217.16,6.6167]
[1736166533559,8.96060215,217.19,217.16,6.6167]
[1736166535160,8.96060215,217.2,217.16,6.6167]
[1736166536277,8.96060215,217.19,217.16,6.6167]
[1736166536581,8.96060215,217.19,217.12,9.82601985]
[1736166536766,8.96060215,217.17,217.12,0.8654177]
[1736166537086,11.5089,217.23,217.12,0.8654177]
[1736166537263,8.96060215,217.17,217.12,0.8654177]
[1736166537874,8.96060215,217.16,217.12,0.8654177]
[1736166538077,11.51,217.21,217.12,0.8654177]
[1736166538390,8.96060215,217.16,217.12,0.8654177]
[1736166538680,8.96060215,217.15,217.12,0.8654177]
[1736166539461,8.96060215,217.17,217.12,0.8654177]
[1736166540266,8.96060215,217.16,217.12,0.8654177]
[1736166540467,8.96060215,217.14,217.12,0.8654177]
[1736166541189,8.96060215,217.13,217.12,0.8654177]
[1736166541563,8.96060215,217.14,217.12,0.8654177]
[1736166542379,8.96060215,217.13,217.12,0.8654177]
[1736166543785,11.02060215,217.13,217.12,0.8654177]
[1736166543989,20.0,217.1,217.0,7.18255085]
[1736166544171,8.96060215,217.03,217.0,7.18255085]
[1736166544576,8.96060215,217.02,217.0,7.18255085]
[1736166544890,8.96060215,217.01,216.95,7.8578]
[1736166545093,8.96060215,217.02,216.95,16.81840215]
[1736166545475,8.96060215,217.02,216.96,8.96060215]
[1736166545676,8.96060215,217.02,216.95,16.81840215]
[1736166545876,8.96060215,217.01,216.95,16.81840215]
[1736166546690,8.96060215,217.01,216.95,7.8578]
[1736166547689,24.83733476,217.12,216.95,7.8578]
[1736166547690,2.06,217.19,217.01,23.776884]
[1736166547986,2.06,217.19,217.06,8.96060215]
[1736166547987,8.96060215,217.13,217.06,8.96060215]
[1736166548159,8.96060215,217.14,217.07,8.96060215]
[1736166549090,8.96060215,217.13,217.06,32.73748615]
[1736166549291,8.96060215,217.14,217.07,8.96060215]
[1736166555588,11.5111,217.19,217.08,32.73748615]
[1736166555894,8.96060215,217.16,217.09,8.96060215]
[1736166556489,8.96060215,217.15,217.09,8.96060215]
[1736166556964,8.96060215,217.15,217.06,0.69084051]
[1736166557161,8.96060215,217.12,217.05,8.0925]
[1736166557365,8.96060215,217.1,217.05,8.0925]
[1736166560096,8.96060215,217.1,217.05,6.57702]
[1736166560899,8.96060215,217.06,217.0,1.6639]
[1736166561081,8.96060215,217.04,217.0,1.6639]
[1736166562171,8.96060215,217.03,216.97,0.98486852]
[1736166562378,11.5171,217.07,216.97,0.98486852]
[1736166562379,8.96060215,217.02,216.97,0.98486852]
[1736166562574,8.96060215,217.03,216.97,0.98486852]
[1736166563379,20.0,217.1,216.97,9.94547067]
[1736166563586,8.96060215,217.05,216.98,8.96060215]
[1736166563995,11.5143,217.12,217.02,8.96060215]
[1736166564197,8.96060215,217.08,217.02,8.96060215]
[1736166565105,14.02402198,217.05,216.98,37.80090598]
[1736166565304,14.02402198,217.05,216.98,14.02402198]
[1736166565492,14.02402198,217.05,216.99,23.776884]
[1736166566005,14.02402198,217.07,217.0,14.02402198]
[1736166566194,14.02402198,217.08,217.01,14.02402198]
[1736166566693,14.02402198,217.07,217.01,14.02402198]
[1736166566988,14.02402198,217.06,216.99,37.80090598]
[1736166567326,14.02402198,217.03,216.97,15.0088905]
[1736166567513,14.02402198,217.01,216.97,0.98486852]
[1736166567712,14.02402198,217.01,216.95,21.98192198]
[1736166568028,14.02402198,217.0,216.95,7.9579]
[1736166568996,14.02402198,217.01,216.95,7.9579]
[1736166569221,14.02402198,216.98,216.91,14.02402198]
[1736166569528,14.02402198,217.03,216.96,37.80090598]
[1736166569828,14.02402198,217.05,216.98,14.02402198]
[1736166570931,14.02402198,217.06,216.99,14.02402198]
[1736166572313,14.02402198,217.05,216.98,37.80090598]
[1736166574333,14.02402198,217.05,216.98,14.02402198]
[1736166574513,11.5163,217.09,216.97,7.6469]
[1736166574514,14.02402198,217.04,216.97,21.67092198]
[1736166575333,14.02402198,217.03,216.97,7.6469]
[1736166576240,14.02402198,217.04,216.97,21.67092198]
[1736166577823,14.02402198,217.07,217.0,14.02402198]
[1736166578823,14.02402198,217.09,217.02,14.02402198]
[1736166579025,14.02402198,217.1,217.03,14.02402198]
[1736166579424,14.02402198,217.09,217.02,14.02402198]
[1736166579835,14.02402198,217.08,217.01,14.02402198]
[1736166583846,14.02402198,217.09,217.02,14.02402198]
[1736166584044,14.02402198,217.11,217.04,14.02402198]
[1736166584561,14.02402198,217.1,217.03,14.02402198]
[1736166586057,14.02402198,217.1,217.04,23.776884]
[1736166586269,14.02402198,217.07,217.0,14.02402198]
[1736166586558,14.02402198,217.07,217.0,36.06402198]
[1736166587156,11.5142,217.13,217.02,8.97456283]
[1736166587355,20.0,217.14,217.02,8.97456283]
[1736166587558,8.97456283,217.1,217.04,23.776884]
[1736166588145,8.97456283,217.1,217.02,8.97456283]
[1736166588346,8.97456283,217.09,217.02,32.75144683]
[1736166588664,8.97456283,217.09,217.03,23.776884]
[1736166589372,46.92368849,217.14,217.03,23.776884]
[1736166589547,8.97456283,217.1,217.04,6.5216]
[1736166591853,8.97456283,217.09,217.04,6.5216]
[1736166592058,55.89825132,217.14,217.04,6.5216]
[1736166592059,8.97456283,217.07,217.04,6.5216]
[1736166592243,37.98516602,217.22,217.06,8.97456283]
[1736166592457,8.97456283,217.14,217.08,23.776884]
[1736166595389,8.97456283,217.13,217.08,23.776884]
[1736166595554,11.5111,217.18,217.08,23.776884]
[1736166595555,8.97456283,217.14,217.08,23.776884]
[1736166595753,8.97456283,217.15,217.08,23.776884]
[1736166596210,8.97456283,217.15,217.08,32.75144683]
[1736166597059,8.97456283,217.15,217.08,23.776884]
[1736166597388,8.97456283,217.14,217.08,23.776884]
[1736166599086,8.97456283,217.13,217.08,23.776884]
[1736166599289,8.97456283,217.09,217.04,6.5216]
[1736166599467,8.97456283,217.08,217.04,6.5216]
[1736166599986,8.97456283,217.09,217.04,6.5216]
[1736166600787,8.97456283,217.1,217.04,6.5216]
[1736166601384,11.5127,217.16,217.04,6.5216]
[1736166601385,20.0,217.19,217.07,32.87693683]
[1736166601554,8.97456283,217.17,217.1,32.75144683]
[1736166601753,8.97456283,217.17,217.11,12.61426283]
[1736166602972,13.0503,217.23,217.11,12.61426283]
[1736166603174,8.97456283,217.18,217.11,12.61426283]
[1736166603357,8.97456283,217.19,217.12,39.35244683]
[1736166603559,8.97456283,217.2,217.14,23.776884]
[1736166604351,8.97456283,217.19,217.13,23.776884]
[1736166604868,8.97456283,217.18,217.12,6.601]
[1736166605188,8.97456283,217.17,217.12,6.601]
[1736166606163,8.97456283,217.16,217.12,6.601]
[1736166606472,35.89825132,217.25,217.11,1.5997]
[1736166606473,8.97456283,217.15,217.11,1.5997]
[1736166607472,8.97456283,217.16,217.11,1.5997]
[1736166607990,8.97456283,217.16,217.12,6.1941]
[1736166608173,8.97456283,217.21,217.13,0.69081075]
[1736166608374,8.97456283,217.2,217.14,8.97456283]
[1736166609071,8.97456283,217.2,217.13,23.776884]
[1736166609274,8.97456283,217.2,217.13,32.75144683]
[1736166609471,8.97456283,217.18,217.13,23.776884]
[1736166610083,8.97456283,217.18,217.12,6.1941]
[1736166610267,8.97456283,217.17,217.12,6.1941]
[1736166610667,8.97456283,217.16,217.12,6.1941]
[1736166611391,11.508,217.24,217.12,6.1941]
[1736166611392,8.97456283,217.15,217.12,6.1941]
[1736166611593,8.97456283,217.16,217.12,6.1941]
[1736166613696,8.97456283,217.17,217.12,6.1941]
[1736166613995,11.508,217.24,217.13,32.75144683]
[1736166613996,8.97456283,217.19,217.13,32.75144683]
[1736166617216,8.97456283,217.19,217.13,23.776884]
[1736166617519,8.97456283,217.18,217.12,6.1941]
[1736166617688,8.97456283,217.17,217.12,6.1941]
[1736166617889,8.97456283,217.17,217.12,29.970984]
[1736166618090,8.97456283,217.18,217.12,29.970984]
[1736166618288,8.97456283,217.18,217.12,38.94554683]
[1736166618785,8.97456283,217.19,217.12,38.94554683]
[1736166619115,8.97456283,217.2,217.12,29.970984]
[1736166619323,8.97456283,217.19,217.12,38.94554683]
[1736166619685,8.97456283,217.21,217.14,8.97456283]
[1736166620111,20.0,217.24,217.15,32.75144683]
[1736166620322,8.97456283,217.21,217.15,32.75144683]
[1736166621815,8.97456283,217.21,217.15,23.776884]
[1736166622019,8.97456283,217.2,217.15,23.776884]
[1736166622313,20.0,217.24,217.16,8.97456283]
[1736166622512,8.97456283,217.21,217.15,32.75144683]
[1736166622821,8.97456283,217.21,217.15,23.776884]
[1736166623912,8.97456283,217.21,217.14,8.97456283]
[1736166623913,8.97456283,217.19,217.12,6.1941]
[1736166624218,8.97456283,217.19,217.14,2.04]
[1736166624620,8.97456283,217.2,217.14,2.04]
[1736166624825,8.97456283,217.19,217.14,2.04]
[1736166625923,8.97456283,217.2,217.14,2.04]
[1736166630034,8.97456283,217.2,217.13,32.75144683]
[1736166630240,8.97456283,217.2,217.13,34.79144683]
[1736166632038,20.0,217.25,217.14,32.75144683]
[1736166632245,8.97456283,217.22,217.14,32.75144683]
[1736166633245,8.97456283,217.21,217.14,32.75144683]
[1736166633537,11.5069,217.27,217.14,32.75144683]
[1736166633836,8.97456283,217.22,217.14,32.75144683]
[1736166636031,8.97456283,217.2,217.13,11.01456283]
[1736166636620,8.97456283,217.19,217.13,2.04]
[1736166637438,8.97456283,217.19,217.13,23.776884]
[1736166638611,8.97456283,217.2,217.13,32.75144683]
[1736166643147,8.97456283,217.2,217.13,23.776884]
[1736166647966,8.97456283,217.15,217.11,1.5997]
[1736166648124,20.0,217.22,217.1,0.60388606]
[1736166648125,8.97456283,217.12,217.1,0.60388606]
[1736166648331,8.97456283,217.11,217.1,0.60388606]
[1736166649529,6.5115,217.2,217.1,0.60388606]
[1736166649530,1.5115,217.2,217.1,0.60388606]
[1736166649733,8.97456283,217.17,217.1,9.57844889]
[1736166650062,8.97456283,217.17,217.11,23.776884]
[1736166650835,8.97456283,217.17,217.11,32.75144683]
[1736166654979,8.97456283,217.17,217.11,23.776884]
[1736166659698,8.97456283,217.18,217.11,32.75144683]
[1736166660657,8.97456283,217.17,217.11,23.776884]
[1736166661056,11.5098,217.21,217.1,9.57844889]
[1736166661057,8.97456283,217.15,217.1,0.60388606]
[1736166661269,8.97456283,217.14,217.1,0.60388606]
[1736166662782,8.97456283,217.13,217.1,0.60388606]
[1736166662959,8.97456283,217.11,217.1,0.60388606]
[1736166663164,8.97456283,217.11,217.03,8.0499]
[1736166663369,8.97456283,217.09,217.04,23.776884]
[1736166663962,8.97456283,217.07,217.03,8.0499]
[1736166664365,8.97456283,217.08,217.03,8.0499]
[1736166664681,8.97456283,217.1,217.03,17.02446283]
[1736166664879,1.577,217.18,217.03,8.0499]
[1736166665182,8.97456283,217.06,216.98,8.2091]
[1736166665382,8.97456283,217.06,216.99,8.97456283]
[1736166665601,8.97456283,217.06,217.0,8.97456283]
[1736166665771,8.97456283,217.07,217.0,8.97456283]
[1736166666284,8.97456283,217.06,217.0,8.97456283]
[1736166666495,8.97456283,217.06,216.98,10.2691]
[1736166666496,8.97456283,217.06,216.99,8.97456283]
[1736166666803,11.5152,217.11,217.0,8.97456283]
[1736166666804,8.97456283,217.07,217.0,8.97456283]
[1736166667395,8.97456283,217.07,217.01,8.97456283]
[1736166669369,11.5152,217.11,217.04,8.97456283]
[1736166669571,20.48976283,217.11,217.04,8.97456283]
[1736166669889,8.97456283,217.1,217.03,8.97456283]
[1736166670090,8.97456283,217.1,217.04,8.97456283]
[1736166670385,8.97456283,217.1,217.03,8.97456283]
[1736166671986,8.97456283,217.1,217.04,8.97456283]
[1736166672493,8.97456283,217.09,217.02,8.97456283]
[1736166672986,8.97456283,217.1,217.03,8.97456283]
[1736166673365,8.97456283,217.11,217.04,8.97456283]
[1736166674468,8.97456283,217.1,217.03,8.97456283]
[1736166674668,8.97456283,217.07,216.99,23.776884]
[1736166674998,8.97456283,217.06,217.0,8.97456283]
[1736166675207,8.97456283,217.07,217.0,8.97456283]
[1736166676189,8.97456283,217.06,216.99,8.97456283]
[1736166677088,11.5156,217.1,217.0,8.97456283]
[1736166677089,8.97456283,217.07,217.0,8.97456283]
[1736166677807,8.97456283,217.06,216.99,8.97456283]
[1736166680199,8.97456283,217.07,217.0,8.97456283]
[1736166682111,8.97456283,217.06,216.99,8.97456283]
[1736166684516,11.5156,217.1,216.93,0.6043593]
[1736166684517,11.518,217.05,216.93,0.6043593]
[1736166684718,8.97456283,216.99,216.93,0.6043593]
[1736166685016,28.776884,217.09,216.93,0.6043593]
[1736166685017,8.97456283,216.98,216.93,0.6043593]
[1736166686289,8.97456283,216.99,216.93,0.6043593]
[1736166687494,8.97456283,216.98,216.93,0.6043593]
[1736166687917,8.97456283,216.97,216.93,0.6043593]
[1736166688098,28.97456283,216.94,216.93,0.6043593]
[1736166688302,28.97456283,216.94,216.81,8.97456283]
[1736166688500,28.97456283,216.94,216.79,46.8987301]
[1736166688501,35.89825132,216.92,216.79,46.8987301]
[1736166688821,20.0,216.93,216.82,8.97456283]
[1736166689006,8.97456283,216.9,216.82,8.97456283]
[1736166689213,8.97456283,216.9,216.83,8.97456283]
[1736166689521,3.42292484,216.95,216.87,8.97456283]
[1736166689522,8.97456283,216.94,216.87,8.97456283]
[1736166690021,1.605,216.95,216.86,8.97456283]
[1736166690022,8.97456283,216.93,216.86,8.97456283]
[1736166690516,13.5628,216.96,216.87,8.97456283]
[1736166690517,8.97456283,216.94,216.87,8.97456283]
[1736166691020,8.97456283,216.95,216.88,8.97456283]
[1736166691229,8.97456283,216.93,216.86,8.97456283]
[1736166692611,8.97456283,216.92,216.85,8.97456283]
[1736166693217,8.97456283,216.92,216.84,7.6008]
[1736166693514,8.97456283,216.93,216.86,8.97456283]
[1736166693917,8.97456283,216.94,216.87,8.97456283]
[1736166694921,20.0,216.99,216.9,8.97456283]
[1736166695230,1.6619,217.0,216.93,8.97456283]
[1736166695408,8.97456283,217.01,216.94,8.97456283]
[1736166695914,8.97456283,217.0,216.93,8.97456283]
[1736166696590,8.97456283,216.99,216.92,8.97456283]
[1736166697216,8.97456283,216.98,216.91,8.97456283]
[1736166697422,6.05,217.03,216.9,8.97456283]
[1736166697423,8.97456283,216.97,216.9,8.97456283]
[1736166697934,8.97456283,216.95,216.88,8.97456283]
[1736166699340,8.97456283,216.94,216.87,11.01456283]
[1736166699507,8.97456283,216.94,216.87,8.97456283]
[1736166699712,8.97456283,216.91,216.84,16.57536283]
[1736166700243,8.97456283,216.91,216.84,8.97456283]
[1736166700740,8.97456283,216.9,216.83,11.01456283]
[1736166700946,8.97456283,216.9,216.83,8.97456283]
[1736166701115,11.5234,216.95,216.84,8.97456283]
[1736166701320,8.97456283,216.91,216.84,8.97456283]
[1736166701529,8.97456283,216.92,216.85,8.97456283]
[1736166703032,8.97456283,216.93,216.86,8.97456283]
[1736166703239,8.97456283,216.95,216.88,8.97456283]
[1736166703540,8.97456283,216.94,216.87,8.97456283]
[1736166706817,8.97456283,216.96,216.89,8.97456283]
[1736166708136,8.97456283,216.96,216.84,24.46843198]
[1736166708137,11.5216,216.99,216.9,8.97456283]
[1736166708309,8.97456283,216.98,216.91,8.97456283]
[1736166708510,1.5741,217.01,216.93,8.97456283]
[1736166708709,8.97456283,217.0,216.93,8.97456283]
[1736166708923,11.5181,217.05,216.94,8.97456283]
[1736166709236,8.97456283,217.04,216.97,8.97456283]
[1736166709527,8.97456283,217.03,216.97,8.97456283]
[1736166710436,8.97456283,217.03,216.96,8.97456283]
[1736166711035,20.0,217.06,216.97,14.02847936]
[1736166711239,14.02847936,217.03,216.96,14.02847936]
[1736166711418,14.02847936,217.01,216.94,14.02847936]
[1736166712828,14.02847936,216.99,216.92,14.02847936]
[1736166713033,14.02847936,216.98,216.91,14.02847936]
[1736166713633,14.02847936,216.98,216.91,37.80536336]
[1736166715643,14.02847936,216.97,216.91,23.776884]
[1736166716342,14.02847936,216.97,216.91,37.80536336]
[1736166717355,14.02847936,216.97,216.91,23.776884]
[1736166722423,14.02847936,216.97,216.92,23.776884]
[1736166722624,14.02847936,216.97,216.91,23.776884]
[1736166722945,14.02847936,216.95,216.91,23.776884]
[1736166724442,14.02847936,216.96,216.91,23.776884]
[1736166724745,14.02847936,216.97,216.91,37.80536336]
[1736166725335,11.5196,217.02,216.88,15.58957936]
[1736166725541,14.02847936,216.93,216.87,8.4725]
[1736166725937,14.02847936,216.91,216.84,14.02847936]
[1736166726249,14.02847936,216.9,216.86,2.02]
[1736166726546,14.02847936,216.9,216.85,2.02]
[1736166726746,14.02847936,216.92,216.86,23.776884]
[1736166726953,14.02847936,216.93,216.86,14.02847936]
[1736166727156,14.02847936,216.92,216.85,36.04847936]
[1736166727462,14.02847936,216.92,216.9,5.0]
[1736166728433,14.02847936,216.93,216.9,5.0]
[1736166728771,14.02847936,216.95,216.9,5.0]
[1736166729279,14.02847936,216.94,216.9,5.0]
[1736166729568,14.02847936,216.93,216.9,5.0]
[1736166730169,14.02847936,216.92,216.9,5.0]